[Event "Slovakian-ch Youth 2022"]
[Site "Lubovna"]
[Date "2022.05.22"]
[Round "2.27"]
[White "Durovka, Marek"]
[Black "Ziman, Damian"]
[Result "1-0"]
[ECO "E51"]
[WhiteElo "1827"]
[BlackElo "1293"]
[Annotator "NA RC COMBH"]
[PlyCount "49"]
[EventDate "2022.05.22"]
[EventCountry "SVK"]
[SourceTitle "playchess.com"]
[Source "ChessBase"]
[SourceQuality "1"]
[TimeControl "40/5400+30:1800+30"]

1. Nf3 {[%emt 0:00:28]} Nc6 {[%emt 0:00:10]} 2. d4 {[%emt 0:00:12]} d5 {[%emt 0:00:19]} 3. c4 {[%emt 0:00:29]} e6 {[%emt 0:00:17]} 4. Nc3 {[%emt 0:00:46]} Nf6 {[%emt 0:00:44]} 5. e3 {[%emt 0:03:58]} Bd6 {[%emt 0:02:05]} 6. a3 {[%emt 0:05:33]} dxc4 {[%emt 0:07:25]} 7. Bxc4 {[%emt 0:01:16]} O-O {[%emt 0:03:57]} 8. Bb5 {[%emt 0:18:26]} Bd7 {[%emt 0:05:44]} 9. e4 {[%emt 0:09:28]} e5 {[%emt 0:08:10]} 10. Bxc6 {[%emt 0:04:21]} Bxc6 {[%emt 0:13:06]} 11. dxe5 {[%emt 0:01:12]} Be7 {[%emt 0:00:19]} 12. Qxd8 {[%emt 0:01:50]} Raxd8 {[%emt 0:00:45]} 13. exf6 {[%emt 0:00:07]} Bxf6 {[%emt 0:00:28]} 14. Nd2 {[%emt 0:06:18]} Rfe8 {[%emt 0:02:23]} 15. f3 {[%emt 0:03:55]} Bh4+ {[%emt 0:01:20]} 16. g3 {[%emt 0:02:20]} Bf6 {[%emt 0:02:30]} 17. O-O {[%emt 0:04:38]} b6 {[%emt 0:05:17]} 18. Nb3 {[%emt 0:04:53]} Bb7 {[%emt 0:02:59]} 19. Bf4 {[%emt 0:01:14]} Ba6 {[%emt 0:04:28]} 20. Rfd1 {[%emt 0:02:34]} Rc8 {[%emt 0:22:26]} 21. Nd4 {[%emt 0:02:52]} c6 {[%emt 0:09:26]} 22. Rac1 {[%emt 0:07:44]} Red8 {[%emt 0:03:25]} 23. e5 {[%emt 0:00:28]} Be7 {[%emt 0:00:31]} 24. Ne4 {[%emt 0:00:45]} Bf8 {[%emt 0:03:42]} 25. Rd2 {[%emt 0:01:13]} 1-0

[Event "Slovakian-ch Youth 2022"]
[Site "Lubovna"]
[Date "2022.05.22"]
[Round "2.28"]
[White "Shykhnenko, Hryhorii"]
[Black "Meszaros, Casey Ryan"]
[Result "0-1"]
[ECO "C29"]
[WhiteElo "1284"]
[BlackElo "1757"]
[Annotator "NA RC COMBH"]
[PlyCount "48"]
[EventDate "2022.05.22"]
[EventCountry "SVK"]
[SourceTitle "playchess.com"]
[Source "ChessBase"]
[SourceQuality "1"]
[TimeControl "40/5400+30:1800+30"]

1. e4 {[%emt 0:00:38]} e5 {[%emt 0:00:36]} 2. Nc3 {[%emt 0:00:07]} Nf6 {[%emt 0:00:10]} 3. f4 {[%emt 0:00:08]} d5 {[%emt 0:00:11]} 4. fxe5 {[%emt 0:00:16]} Nxe4 {[%emt 0:00:14]} 5. Nxe4 {[%emt 0:00:06]} dxe4 {[%emt 0:00:09]} 6. g3 {[%emt 0:00:06]} Qd5 {[%emt 0:05:23]} 7. Bg2 {[%emt 0:06:06]} Qxe5 {[%emt 0:07:27]} 8. Qe2 {[%emt 0:02:06]} Bf5 {[%emt 0:01:08]} 9. d3 {[%emt 0:03:45]} Bb4+ {[%emt 0:04:40]} 10. Kf1 {[%emt 0:05:19]} Nc6 {[%emt 0:08:36]} 11. c3 {[%emt 0:06:43]} O-O-O {[%emt 0:14:39]} 12. cxb4 {[%emt 0:12:37]} Rxd3 {[%emt 0:07:48]} 13. Bf4 {[%emt 0:06:41]} Qb5 {[%emt 0:04:53]} 14. Be3 {[%emt 0:07:31]} Ne5 {[%emt 0:04:16]} 15. Ke1 {[%emt 0:13:46]} Bg4 {[%emt 0:06:22]} 16. Bh3 {[%emt 0:01:17]} f5 {[%emt 0:03:09]} 17. Bxg4 {[%emt 0:03:17]} Nxg4 {[%emt 0:00:14]} 18. Bf4 {[%emt 0:02:29]} Qxb4+ {[%emt 0:02:18]} 19. Kf1 {[%emt 0:03:19]} Rhd8 {[%emt 0:11:34]} 20. Nh3 {[%emt 0:02:51]} Rd2 {[%emt 0:05:15]} 21. Bxd2 {[%emt 0:03:14]} Rxd2 {[%emt 0:00:11]} 22. Qe1 {[%emt 0:02:16]} Qc4+ {[%emt 0:00:22]} 23. Kg1 {[%emt 0:00:39]} Qd4+ {[%emt 0:00:12]} 24. Kf1 {[%emt 0:00:32]} Ne3+ {[%emt 0:00:31]} 0-1

[Event "Slovakian-ch Youth 2022"]
[Site "Lubovna"]
[Date "2022.05.22"]
[Round "2.29"]
[White "Bilik, Matej"]
[Black "Boros, David"]
[Result "1-0"]
[ECO "B17"]
[WhiteElo "1553"]
[BlackElo "1173"]
[Annotator "NA RC COMBH"]
[PlyCount "65"]
[EventDate "2022.05.22"]
[EventCountry "SVK"]
[SourceTitle "playchess.com"]
[Source "ChessBase"]
[SourceQuality "1"]
[TimeControl "40/5400+30:1800+30"]

1. e4 {[%emt 0:00:06]} c6 {[%emt 0:01:52]} 2. d4 {[%emt 0:00:46]} d5 {[%emt 0:00:08]} 3. Nc3 {[%emt 0:00:29]} dxe4 {[%emt 0:02:00]} 4. Nxe4 {[%emt 0:00:11]} Nd7 {[%emt 0:02:11]} 5. Qe2 {[%emt 0:00:29]} Qc7 {[%emt 0:03:00]} 6. g3 {[%emt 0:04:20]} g6 {[%emt 0:03:54]} 7. Bf4 {[%emt 0:01:39]} Qa5+ {[%emt 0:03:59]} 8. Bd2 {[%emt 0:00:52]} Qc7 {[%emt 0:02:14]} 9. O-O-O {[%emt 0:00:57]} b6 {[%emt 0:04:30]} 10. Bf4 {[%emt 0:02:05]} e5 {[%emt 0:01:03]} 11. dxe5 {[%emt 0:00:20]} Nxe5 {[%emt 0:00:18]} 12. Bxe5 {[%emt 0:00:25]} Qxe5 {[%emt 0:00:23]} 13. Nf6+ {[%emt 0:00:12]} Ke7 {[%emt 0:00:25]} 14. Qxe5+ {[%emt 0:00:10]} Be6 {[%emt 0:00:03]} 15. Nxg8+ {[%emt 0:00:52]} Rxg8 {[%emt 0:00:19]} 16. Qc7+ {[%emt 0:00:36]} Ke8 {[%emt 0:00:22]} 17. Qxc6+ {[%emt 0:00:15]} Ke7 {[%emt 0:00:15]} 18. Qc7+ {[%emt 0:00:56]} Kf6 {[%emt 0:00:12]} 19. Qf4+ {[%emt 0:00:45]} Ke7 {[%emt 0:00:16]} 20. Bc4 {[%emt 0:07:29]} Bxc4 {[%emt 0:00:22]} 21. Qxc4 {[%emt 0:00:16]} Rd8 {[%emt 0:00:24]} 22. Rxd8 {[%emt 0:00:18]} Kxd8 {[%emt 0:00:12]} 23. Qxf7 {[%emt 0:01:56]} Rh8 {[%emt 0:00:19]} 24. Qf6+ {[%emt 0:00:15]} Ke8 {[%emt 0:00:45]} 25. Qxh8 {[%emt 0:00:13]} Kd8 {[%emt 0:00:09]} 26. Qxf8+ {[%emt 0:00:10]} Kd7 {[%emt 0:00:12]} 27. Qf6 {[%emt 0:00:08]} Kc8 {[%emt 0:00:14]} 28. Qe7 {[%emt 0:00:10]} Kb8 {[%emt 0:00:09]} 29. Qd7 {[%emt 0:00:19]} a5 {[%emt 0:00:11]} 30. Nf3 {[%emt 0:00:09]} a4 {[%emt 0:00:18]} 31. Nd4 {[%emt 0:00:11]} a3 {[%emt 0:00:16]} 32. Nc6+ {[%emt 0:00:07]} Ka8 {[%emt 0:00:10]} 33. Qa7# {[%emt 0:00:05]} 1-0

[Event "Slovakian-ch Youth 2022"]
[Site "Lubovna"]
[Date "2022.05.22"]
[Round "2.30"]
[White "Papay Aurel"]
[Black "Dolnik, Michal"]
[Result "0-1"]
[ECO "B33"]
[WhiteElo "1000"]
[BlackElo "1548"]
[Annotator "NA COMBH"]
[PlyCount "78"]
[EventDate "2022.05.22"]
[EventCountry "SVK"]
[SourceTitle "playchess.com"]
[Source "ChessBase"]
[SourceQuality "1"]
[TimeControl "40/5400+30:1800+30"]

1. e4 {[%emt 0:00:05]} c5 {[%emt 0:00:10]} 2. Nf3 {[%emt 0:00:22]} Nc6 {[%emt 0:00:17]} 3. d4 {[%emt 0:00:56]} cxd4 {[%emt 0:00:15]} 4. Nxd4 {[%emt 0:00:07]} Nf6 {[%emt 0:00:25]} 5. Nc3 {[%emt 0:00:08]} a6 {[%emt 0:00:46]} 6. Bf4 {[%emt 0:01:12]} d6 {[%emt 0:00:37]} 7. Bg3 {[%emt 0:07:06]} g6 {[%emt 0:01:58]} 8. Bc4 {[%emt 0:01:37]} e6 {[%emt 0:00:38]} 9. O-O {[%emt 0:04:39]} Nh5 {[%emt 0:01:26]} 10. Qd3 {[%emt 0:09:55]} Nxg3 {[%emt 0:00:39]} 11. fxg3 {[%emt 0:13:13]} Qb6 {[%emt 0:00:41]} 12. Nce2 {[%emt 0:08:59]} Bg7 {[%emt 0:00:42]} 13. Rad1 {[%emt 0:01:20]} Ne5 {[%emt 0:04:57]} 14. Qc3 {[%emt 0:08:15]} O-O {[%emt 0:02:24]} 15. Kh1 {[%emt 0:02:42]} Bd7 {[%emt 0:01:06]} 16. Nf4 {[%emt 0:08:27]} Nxc4 {[%emt 0:00:46]} 17. Qxc4 {[%emt 0:01:04]} Rac8 {[%emt 0:00:05]} 18. Qd3 {[%emt 0:06:56]} e5 {[%emt 0:00:14]} 19. Nd5 {[%emt 0:01:14]} Qxd4 {[%emt 0:00:17]} 20. Ne7+ {[%emt 0:03:23]} Kh8 {[%emt 0:00:25]} 21. Qxd4 {[%emt 0:00:24]} exd4 {[%emt 0:00:11]} 22. Nxc8 {[%emt 0:00:49]} Rxc8 {[%emt 0:00:04]} 23. Rxf7 {[%emt 0:01:03]} Bg4 {[%emt 0:00:05]} 24. Rd2 {[%emt 0:01:44]} Bh6 {[%emt 0:00:08]} 25. Rxd4 {[%emt 0:01:23]} Rxc2 {[%emt 0:00:11]} 26. h3 {[%emt 0:00:42]} Be3 {[%emt 0:03:42]} 27. Rxd6 {[%emt 0:05:05]} Rc1+ {[%emt 0:00:20]} 28. Kh2 {[%emt 0:00:21]} Bg1+ {[%emt 0:00:05]} 29. Kh1 {[%emt 0:01:29]} Bc5+ {[%emt 0:00:10]} 30. Kh2 {[%emt 0:00:08]} Bxd6 {[%emt 0:00:02]} 31. hxg4 {[%emt 0:00:25]} b6 {[%emt 0:00:26]} 32. Rb7 {[%emt 0:00:38]} Bc5 {[%emt 0:00:14]} 33. Rd7 {[%emt 0:01:19]} Re1 {[%emt 0:00:29]} 34. Rd8+ {[%emt 0:00:42]} Kg7 {[%emt 0:00:07]} 35. Re8 {[%emt 0:00:04]} Kh6 {[%emt 0:00:33]} 36. e5 {[%emt 0:00:28]} Kg5 {[%emt 0:00:06]} 37. e6 {[%emt 0:01:18]} Kxg4 {[%emt 0:00:20]} 38. a4 {[%emt 0:02:07]} Bg1+ {[%emt 0:00:05]} 39. Kh1 {[%emt 0:00:37]} Bf2+ {[%emt 0:00:04]} 0-1

[Event "Slovakian-ch Youth 2022"]
[Site "Lubovna"]
[Date "2022.05.22"]
[Round "2.31"]
[White "Ropovik, Samuel"]
[Black "Hudak, Michal"]
[Result "1-0"]
[ECO "B50"]
[WhiteElo "1453"]
[BlackElo "1169"]
[Annotator "NA COMBH"]
[PlyCount "51"]
[EventDate "2022.05.22"]
[EventCountry "SVK"]
[SourceTitle "playchess.com"]
[Source "ChessBase"]
[SourceQuality "1"]
[TimeControl "40/5400+30:1800+30"]

1. e4 {[%emt 0:00:06]} c5 {[%emt 0:00:16]} 2. Nf3 {[%emt 0:00:23]} e6 {[%emt 0:00:33]} 3. b3 {[%emt 0:04:15]} Nc6 {[%emt 0:04:34]} 4. Bb2 {[%emt 0:01:51]} d6 {[%emt 0:04:23]} 5. d4 {[%emt 0:03:55]} cxd4 {[%emt 0:04:04]} 6. Nxd4 {[%emt 0:01:14]} Nxd4 {[%emt 0:05:13]} 7. Bxd4 {[%emt 0:14:52]} Nf6 {[%emt 0:14:59]} 8. Nc3 {[%emt 0:05:30]} e5 {[%emt 0:04:27]} 9. Be3 {[%emt 0:00:45]} Be6 {[%emt 0:00:41]} 10. f3 {[%emt 0:07:21]} a6 {[%emt 0:16:08]} 11. g4 {[%emt 0:12:08]} d5 {[%emt 0:02:32]} 12. exd5 {[%emt 0:14:36]} Bxd5 {[%emt 0:00:24]} 13. Nxd5 {[%emt 0:04:34]} Nxd5 {[%emt 0:00:32]} 14. Bd2 {[%emt 0:01:56]} Bc5 {[%emt 0:03:35]} 15. Qe2 {[%emt 0:03:44]} Qf6 {[%emt 0:02:21]} 16. O-O-O {[%emt 0:01:33]} O-O {[%emt 0:03:50]} 17. Qe4 {[%emt 0:04:41]} Rfd8 {[%emt 0:04:08]} 18. Bc4 {[%emt 0:01:52]} Ba3+ {[%emt 0:00:23]} 19. Kb1 {[%emt 0:00:19]} Nc3+ {[%emt 0:00:07]} 20. Bxc3 {[%emt 0:00:38]} Rxd1+ {[%emt 0:07:32]} 21. Rxd1 {[%emt 0:00:04]} Rd8 {[%emt 0:00:19]} 22. Rxd8+ {[%emt 0:00:52]} Qxd8 {[%emt 0:00:02]} 23. Qd5 {[%emt 0:02:00]} Qf6 {[%emt 0:04:38]} 24. Qxe5 {[%emt 0:04:56]} Qh6 {[%emt 0:01:06]} 25. Qe8+ {[%emt 0:00:45]} Bf8 {[%emt 0:00:21]} 26. Qxf7+ {[%emt 0:00:19]} 1-0

[Event "Slovakian-ch Youth 2022"]
[Site "Lubovna"]
[Date "2022.05.22"]
[Round "2.32"]
[White "Kriska Alexander"]
[Black "Dvorak, Alfred"]
[Result "0-1"]
[ECO "B30"]
[WhiteElo "1046"]
[BlackElo "1239"]
[Annotator "NA COMBH"]
[PlyCount "109"]
[EventDate "2022.05.22"]
[EventCountry "SVK"]
[SourceTitle "playchess.com"]
[Source "ChessBase"]
[SourceQuality "1"]
[TimeControl "40/5400+30:1800+30"]

1. e4 {[%emt 0:00:07]} c5 {[%emt 0:00:15]} 2. Nc3 {[%emt 0:00:41]} Nc6 {[%emt 0:00:31]} 3. Nf3 {[%emt 0:00:50]} d6 {[%emt 0:00:20]} 4. Bc4 {[%emt 0:01:04]} g6 {[%emt 0:01:32]} 5. d3 {[%emt 0:01:12]} Bg7 {[%emt 0:01:03]} 6. Be3 {[%emt 0:02:03]} Bg4 {[%emt 0:02:09]} 7. h3 {[%emt 0:01:38]} Bxf3 {[%emt 0:01:17]} 8. Qxf3 {[%emt 0:01:04]} Ne5 {[%emt 0:02:25]} 9. Qe2 {[%emt 0:01:13]} Nxc4 {[%emt 0:01:03]} 10. dxc4 {[%emt 0:01:36]} e6 {[%emt 0:02:05]} 11. Bd2 {[%emt 0:02:40]} Ne7 {[%emt 0:02:06]} 12. O-O {[%emt 0:03:56]} O-O {[%emt 0:01:13]} 13. Rab1 {[%emt 0:02:23]} Nc6 {[%emt 0:00:58]} 14. a3 {[%emt 0:05:47]} a6 {[%emt 0:06:21]} 15. b4 {[%emt 0:03:47]} Qe7 {[%emt 0:02:09]} 16. Nd1 {[%emt 0:04:37]} Rfd8 {[%emt 0:03:56]} 17. Re1 {[%emt 0:02:38]} Qh4 {[%emt 0:02:34]} 18. c3 {[%emt 0:02:06]} Rd7 {[%emt 0:04:14]} 19. Ne3 {[%emt 0:03:13]} Qxe4 {[%emt 0:02:13]} 20. Ng4 {[%emt 0:03:43]} Qxe2 {[%emt 0:01:15]} 21. Rxe2 {[%emt 0:00:13]} Rad8 {[%emt 0:00:48]} 22. Ne3 {[%emt 0:04:21]} Ne7 {[%emt 0:03:58]} 23. b5 {[%emt 0:01:01]} d5 {[%emt 0:05:17]} 24. bxa6 {[%emt 0:01:55]} bxa6 {[%emt 0:01:05]} 25. Rb6 {[%emt 0:01:51]} d4 {[%emt 0:02:17]} 26. cxd4 {[%emt 0:02:37]} cxd4 {[%emt 0:00:09]} 27. Nd1 {[%emt 0:00:40]} Rc8 {[%emt 0:01:18]} 28. Rxa6 {[%emt 0:02:48]} Rxc4 {[%emt 0:01:47]} 29. Ra8+ {[%emt 0:04:11]} Nc8 {[%emt 0:01:57]} 30. Bb4 {[%emt 0:03:41]} Rd8 {[%emt 0:02:00]} 31. Be7 {[%emt 0:01:29]} Re8 {[%emt 0:01:02]} 32. Nb2 {[%emt 0:03:22]} Rc1+ {[%emt 0:00:48]} 33. Kh2 {[%emt 0:02:25]} Rxe7 {[%emt 0:00:56]} 34. Nd3 {[%emt 0:02:47]} Rc3 {[%emt 0:00:46]} 35. Rd2 {[%emt 0:01:26]} h5 {[%emt 0:00:53]} 36. a4 {[%emt 0:00:42]} Kh7 {[%emt 0:00:59]} 37. a5 {[%emt 0:02:49]} Ra7 {[%emt 0:00:23]} 38. Rb8 {[%emt 0:01:45]} Rxa5 {[%emt 0:00:43]} 39. Rb7 {[%emt 0:00:33]} Nd6 {[%emt 0:00:33]} 40. Rd7 {[%emt 0:00:27]} Ra6 {[%emt 0:00:42]} 41. Nb2 {[%emt 0:34:33]} g5 {[%emt 0:30:30]} 42. g3 {[%emt 0:00:39]} Kg6 {[%emt 0:00:09]} 43. g4 {[%emt 0:01:52]} h4 {[%emt 0:00:20]} 44. Rd8 {[%emt 0:01:33]} Ne4 {[%emt 0:01:15]} 45. Re2 {[%emt 0:01:58]} f5 {[%emt 0:00:43]} 46. Kg2 {[%emt 0:03:32]} Raa3 {[%emt 0:00:39]} 47. Nd1 {[%emt 0:01:47]} Rxh3 {[%emt 0:00:53]} 48. Rb8 {[%emt 0:01:02]} Be5 {[%emt 0:00:32]} 49. Rbb2 {[%emt 0:01:27]} Rh2+ {[%emt 0:00:22]} 50. Kf1 {[%emt 0:00:49]} d3 {[%emt 0:00:38]} 51. Re3 {[%emt 0:00:38]} Bxb2 {[%emt 0:00:27]} 52. Rf3 {[%emt 0:01:32]} Nd2+ {[%emt 0:00:13]} 53. Ke1 {[%emt 0:00:41]} Nxf3+ {[%emt 0:00:14]} 54. Kf1 {[%emt 0:00:19]} h3 {[%emt 0:00:14]} 55. Nc3 {[%emt 0:01:16]} 0-1

[Event "Slovakian-ch Youth 2022"]
[Site "Lubovna"]
[Date "2022.05.22"]
[Round "2.33"]
[White "Diachenko Mykhailo"]
[Black "Brnusak, Simon"]
[Result "0-1"]
[ECO "B45"]
[WhiteElo "1000"]
[BlackElo "1090"]
[Annotator "NA COMBH"]
[PlyCount "96"]
[EventDate "2022.05.22"]
[EventCountry "SVK"]
[SourceTitle "playchess.com"]
[Source "ChessBase"]
[SourceQuality "1"]
[TimeControl "40/5400+30:1800+30"]

1. e4 {[%emt 0:00:05]} c5 {[%emt 0:00:25]} 2. Nf3 {[%emt 0:00:16]} e6 {[%emt 0:01:26]} 3. d4 {[%emt 0:00:14]} cxd4 {[%emt 0:01:21]} 4. Nxd4 {[%emt 0:00:40]} Nc6 {[%emt 0:01:36]} 5. Nc3 {[%emt 0:01:31]} Nf6 {[%emt 0:01:52]} 6. Bb5 {[%emt 0:00:38]} Nxd4 {[%emt 0:02:45]} 7. Qxd4 {[%emt 0:00:30]} Be7 {[%emt 0:02:07]} 8. O-O {[%emt 0:01:47]} O-O {[%emt 0:01:38]} 9. Re1 {[%emt 0:01:17]} a6 {[%emt 0:02:00]} 10. Ba4 {[%emt 0:00:36]} d5 {[%emt 0:01:47]} 11. e5 {[%emt 0:00:49]} Ne8 {[%emt 0:10:33]} 12. Qg4 {[%emt 0:00:33]} Kh8 {[%emt 0:01:56]} 13. Re3 {[%emt 0:00:57]} Rg8 {[%emt 0:02:27]} 14. Rf3 {[%emt 0:00:43]} f6 {[%emt 0:01:46]} 15. Ne2 {[%emt 0:01:09]} fxe5 {[%emt 0:03:45]} 16. c3 {[%emt 0:00:50]} Nf6 {[%emt 0:01:56]} 17. Qh3 {[%emt 0:00:36]} e4 {[%emt 0:01:57]} 18. Rf4 {[%emt 0:00:51]} e5 {[%emt 0:01:41]} 19. Rh4 {[%emt 0:00:52]} Bxh3 {[%emt 0:02:26]} 20. Rxh3 {[%emt 0:00:28]} d4 {[%emt 0:02:50]} 21. Bd2 {[%emt 0:01:16]} Rc8 {[%emt 0:03:14]} 22. Bc2 {[%emt 0:00:27]} d3 {[%emt 0:01:47]} 23. Rc1 {[%emt 0:02:25]} dxe2 {[%emt 0:00:56]} 24. Bg5 {[%emt 0:00:32]} h6 {[%emt 0:02:46]} 25. Re1 {[%emt 0:00:47]} Nd5 {[%emt 0:02:03]} 26. Bxe7 {[%emt 0:00:55]} Qxe7 {[%emt 0:01:14]} 27. Rxe2 {[%emt 0:00:29]} Nf4 {[%emt 0:00:27]} 28. Rxh6+ {[%emt 0:01:16]} gxh6 {[%emt 0:00:59]} 29. Rxe4 {[%emt 0:00:08]} Qg5 {[%emt 0:01:31]} 30. g3 {[%emt 0:00:51]} Nh3+ {[%emt 0:02:11]} 31. Kg2 {[%emt 0:00:28]} Qf5 {[%emt 0:02:37]} 32. Re2 {[%emt 0:00:25]} Nf4+ {[%emt 0:00:50]} 33. Kf1 {[%emt 0:00:35]} Qh3+ {[%emt 0:01:16]} 34. Ke1 {[%emt 0:00:33]} Ng2+ {[%emt 0:01:26]} 35. Kd1 {[%emt 0:00:39]} Rcd8+ {[%emt 0:01:36]} 36. Kc1 {[%emt 0:00:36]} Qxh2 {[%emt 0:01:53]} 37. Bd1 {[%emt 0:00:47]} Rxd1+ {[%emt 0:02:50]} 38. Kxd1 {[%emt 0:00:43]} Rd8+ {[%emt 0:00:59]} 39. Kc2 {[%emt 0:00:13]} Ne3+ {[%emt 0:02:15]} 40. Kb3 {[%emt 0:00:30]} Qh1 {[%emt 0:01:43]} 41. fxe3 {[%emt 0:30:40]} Qd1+ {[%emt 0:30:29]} 42. Rc2 {[%emt 0:01:34]} Qd5+ {[%emt 0:01:27]} 43. Ka3 {[%emt 0:00:28]} Qa5+ {[%emt 0:01:21]} 44. Kb3 {[%emt 0:00:18]} b5 {[%emt 0:01:29]} 45. a3 {[%emt 0:01:32]} Qa4+ {[%emt 0:01:37]} 46. Ka2 {[%emt 0:00:22]} Qxc2 {[%emt 0:02:22]} 47. e4 {[%emt 0:00:16]} Rd2 {[%emt 0:00:40]} 48. a4 {[%emt 0:00:24]} Qxb2# {[%emt 0:00:25]} 0-1

[Event "Slovakian-ch Youth 2022"]
[Site "Lubovna"]
[Date "2022.05.22"]
[Round "2.34"]
[White "Gobl, Fabian"]
[Black "Drabek Matej"]
[Result "1-0"]
[ECO "A10"]
[WhiteElo "1017"]
[BlackElo "1000"]
[Annotator "NA COMBH"]
[PlyCount "79"]
[EventDate "2022.05.22"]
[EventCountry "SVK"]
[SourceTitle "playchess.com"]
[Source "ChessBase"]
[SourceQuality "1"]
[TimeControl "40/5400+30:1800+30"]

1. c4 {[%emt 0:00:05]} d5 {[%emt 0:01:01]} 2. d3 {[%emt 0:00:31]} Bf5 {[%emt 0:00:43]} 3. cxd5 {[%emt 0:01:00]} Qxd5 {[%emt 0:00:33]} 4. e4 {[%emt 0:00:21]} Qa5+ {[%emt 0:01:10]} 5. Bd2 {[%emt 0:00:18]} Qe5 {[%emt 0:00:35]} 6. Nf3 {[%emt 0:03:17]} Qxb2 {[%emt 0:00:45]} 7. Bc3 {[%emt 0:00:40]} Qb5 {[%emt 0:02:41]} 8. exf5 {[%emt 0:00:46]} Qxf5 {[%emt 0:00:42]} 9. Be2 {[%emt 0:00:58]} e6 {[%emt 0:01:31]} 10. O-O {[%emt 0:00:40]} Nf6 {[%emt 0:00:25]} 11. Ne5 {[%emt 0:01:16]} Bd6 {[%emt 0:01:15]} 12. d4 {[%emt 0:01:30]} Ne4 {[%emt 0:02:10]} 13. Bf3 {[%emt 0:02:41]} Nc6 {[%emt 0:01:20]} 14. Bxe4 {[%emt 0:04:11]} Qxe4 {[%emt 0:01:10]} 15. Nxc6 {[%emt 0:00:53]} Qxc6 {[%emt 0:00:58]} 16. Re1 {[%emt 0:00:25]} O-O-O {[%emt 0:01:49]} 17. Qb3 {[%emt 0:05:09]} h5 {[%emt 0:01:48]} 18. Rc1 {[%emt 0:01:21]} Qe4 {[%emt 0:01:18]} 19. Nd2 {[%emt 0:02:57]} Qf4 {[%emt 0:00:39]} 20. g3 {[%emt 0:01:28]} Qg5 {[%emt 0:00:32]} 21. Ne4 {[%emt 0:00:56]} Qg6 {[%emt 0:00:40]} 22. Nxd6+ {[%emt 0:00:30]} Rxd6 {[%emt 0:00:24]} 23. Rab1 {[%emt 0:02:32]} b6 {[%emt 0:00:14]} 24. Bb4 {[%emt 0:00:47]} Rxd4 {[%emt 0:01:04]} 25. Qc3 {[%emt 0:00:41]} Rd7 {[%emt 0:00:55]} 26. Rb2 {[%emt 0:02:12]} Re8 {[%emt 0:00:52]} 27. Rd2 {[%emt 0:01:01]} Red8 {[%emt 0:00:49]} 28. Bd6 {[%emt 0:01:49]} Kb8 {[%emt 0:01:08]} 29. Bxc7+ {[%emt 0:00:43]} Kc8 {[%emt 0:00:51]} 30. Bxd8+ {[%emt 0:00:51]} Kxd8 {[%emt 0:00:17]} 31. Qc8+ {[%emt 0:00:19]} Ke7 {[%emt 0:00:19]} 32. Qxd7+ {[%emt 0:00:40]} Kf6 {[%emt 0:00:52]} 33. Qxa7 {[%emt 0:00:30]} h4 {[%emt 0:00:17]} 34. Rc3 {[%emt 0:00:27]} h3 {[%emt 0:00:27]} 35. Qa4 {[%emt 0:01:09]} Qb1+ {[%emt 0:00:29]} 36. Rd1 {[%emt 0:00:21]} Qf5 {[%emt 0:00:50]} 37. Qd4+ {[%emt 0:00:49]} Kg6 {[%emt 0:01:04]} 38. Qxb6 {[%emt 0:00:55]} Qe4 {[%emt 0:01:00]} 39. f3 {[%emt 0:02:14]} Qe2 {[%emt 0:00:41]} 40. Qb1+ {[%emt 0:01:32]} 1-0

[Event "Slovakian-ch Youth 2022"]
[Site "Lubovna"]
[Date "2022.05.22"]
[Round "2.35"]
[White "Stavac Teodor"]
[Black "Janoska Peter"]
[Result "0-1"]
[ECO "B45"]
[WhiteElo "1000"]
[BlackElo "1272"]
[Annotator "NA COMBH"]
[PlyCount "50"]
[EventDate "2022.05.22"]
[EventCountry "SVK"]
[SourceTitle "playchess.com"]
[Source "ChessBase"]
[SourceQuality "1"]
[TimeControl "40/5400+30:1800+30"]

1. e4 {[%emt 0:00:05]} c5 {[%emt 0:00:08]} 2. Nf3 {[%emt 0:00:11]} e6 {[%emt 0:00:12]} 3. Nc3 {[%emt 0:00:56]} Nc6 {[%emt 0:00:24]} 4. d4 {[%emt 0:00:20]} cxd4 {[%emt 0:00:29]} 5. Nxd4 {[%emt 0:00:14]} Nf6 {[%emt 0:01:17]} 6. Bg5 {[%emt 0:00:53]} Be7 {[%emt 0:15:47]} 7. Bb5 {[%emt 0:01:35]} a6 {[%emt 0:04:02]} 8. Ba4 {[%emt 0:00:35]} b5 {[%emt 0:09:02]} 9. Bb3 {[%emt 0:01:44]} Nxe4 {[%emt 0:13:18]} 10. Nxe4 {[%emt 0:00:29]} Bxg5 {[%emt 0:00:29]} 11. Nxg5 {[%emt 0:00:18]} Qxg5 {[%emt 0:00:17]} 12. O-O {[%emt 0:00:30]} Bb7 {[%emt 0:02:37]} 13. Nf3 {[%emt 0:01:41]} Qg6 {[%emt 0:01:45]} 14. Re1 {[%emt 0:02:15]} O-O {[%emt 0:13:50]} 15. Qxd7 {[%emt 0:03:48]} Na5 {[%emt 0:02:51]} 16. Re3 {[%emt 0:01:35]} Qf6 {[%emt 0:04:40]} 17. Rd1 {[%emt 0:03:23]} Rfd8 {[%emt 0:00:54]} 18. Qc7 {[%emt 0:04:01]} Rxd1+ {[%emt 0:00:52]} 19. Re1 {[%emt 0:00:37]} Bxf3 {[%emt 0:01:37]} 20. gxf3 {[%emt 0:01:00]} Rxe1+ {[%emt 0:00:31]} 21. Kg2 {[%emt 0:00:30]} Qg5+ {[%emt 0:00:39]} 22. Kh3 {[%emt 0:00:21]} Nxb3 {[%emt 0:01:00]} 23. axb3 {[%emt 0:01:52]} Rd8 {[%emt 0:00:30]} 24. Qc6 {[%emt 0:00:30]} Rg1 {[%emt 0:00:38]} 25. c4 {[%emt 0:00:35]} Qh5# {[%emt 0:00:22]} 0-1

[Event "Slovakian-ch Youth 2022"]
[Site "Lubovna"]
[Date "2022.05.22"]
[Round "2.36"]
[White "Krajci Hugo"]
[Black "Slivka Martin"]
[Result "1-0"]
[ECO "C55"]
[WhiteElo "1178"]
[BlackElo "1000"]
[Annotator "NA RC COMBH"]
[PlyCount "55"]
[EventDate "2022.05.22"]
[EventCountry "SVK"]
[SourceTitle "playchess.com"]
[Source "ChessBase"]
[SourceQuality "1"]
[TimeControl "40/5400+30:1800+30"]

1. e4 {[%emt 0:00:04]} e5 {[%emt 0:00:08]} 2. Nf3 {[%emt 0:00:03]} Nc6 {[%emt 0:00:37]} 3. Bc4 {[%emt 0:00:09]} Be7 {[%emt 0:00:40]} 4. O-O {[%emt 0:00:18]} Nf6 {[%emt 0:01:11]} 5. Nc3 {[%emt 0:00:11]} Nxe4 {[%emt 0:01:39]} 6. Nxe4 {[%emt 0:00:20]} d5 {[%emt 0:00:19]} 7. Bxd5 {[%emt 0:00:51]} Qxd5 {[%emt 0:00:24]} 8. Nc3 {[%emt 0:00:05]} Qd8 {[%emt 0:00:49]} 9. d3 {[%emt 0:00:17]} Bg4 {[%emt 0:01:02]} 10. h3 {[%emt 0:00:31]} Bh5 {[%emt 0:00:52]} 11. Ne4 {[%emt 0:04:36]} O-O {[%emt 0:01:48]} 12. Ng3 {[%emt 0:00:06]} Nd4 {[%emt 0:01:06]} 13. Nxh5 {[%emt 0:00:29]} Nxf3+ {[%emt 0:00:58]} 14. Qxf3 {[%emt 0:00:20]} Bf6 {[%emt 0:01:06]} 15. Nxf6+ {[%emt 0:00:23]} Qxf6 {[%emt 0:00:11]} 16. Qxf6 {[%emt 0:00:07]} gxf6 {[%emt 0:00:20]} 17. c3 {[%emt 0:00:19]} a5 {[%emt 0:01:25]} 18. d4 {[%emt 0:00:21]} b5 {[%emt 0:00:38]} 19. a3 {[%emt 0:01:02]} Rfd8 {[%emt 0:00:55]} 20. Be3 {[%emt 0:00:54]} Rac8 {[%emt 0:03:29]} 21. Rfd1 {[%emt 0:00:52]} c6 {[%emt 0:01:49]} 22. f3 {[%emt 0:00:14]} Kg7 {[%emt 0:01:08]} 23. Bf2 {[%emt 0:00:26]} Kg6 {[%emt 0:02:08]} 24. Bh4 {[%emt 0:01:22]} Kf5 {[%emt 0:04:10]} 25. g4+ {[%emt 0:02:03]} Kf4 {[%emt 0:01:10]} 26. Kf2 {[%emt 0:00:32]} c5 {[%emt 0:01:43]} 27. Re1 {[%emt 0:00:42]} exd4 {[%emt 0:01:50]} 28. Re4# {[%emt 0:01:05]} 1-0